bitfinex/quotes_SOLUSD_20250226
["timestamp","ask_amount","ask_price","bid_price","bid_amount"]
[1740612818032,0.7371,135.67,135.62,18.64964886]
[1740612818731,0.7371,135.67,135.62,26.02314886]
[1740612819033,0.7371,135.67,135.62,18.64964886]
[1740612819230,0.7371,135.67,135.61,7.12]
[1740612819728,84.97768754,135.66,135.57,7.12]
[1740612819931,82.9,135.65,135.57,7.12]
[1740612820334,82.9,135.65,135.58,18.64964886]
[1740612820744,0.7372,135.64,135.58,18.64964886]
[1740612822346,0.7373,135.62,135.57,7.12]
[1740612822816,83.6373,135.62,135.57,7.12]
[1740612823025,82.9,135.61,135.55,0.063]
[1740612823919,82.9,135.61,135.55,7.4403]
[1740612825055,82.9,135.61,135.56,18.64964886]
[1740612825360,83.6372,135.64,135.57,0.42648471]
[1740612825529,82.9,135.66,135.59,0.42648471]
[1740612825729,82.9,135.66,135.6,18.64964886]
[1740612826250,83.6371,135.66,135.6,18.64964886]
[1740612826948,85.4799,135.66,135.6,18.64964886]
[1740612828028,82.9,135.65,135.58,16.0181]
[1740612828535,82.9,135.65,135.59,18.64964886]
[1740612828841,0.14216157,135.64,135.57,82.4]
[1740612829155,83.6373,135.63,135.57,18.64964886]
[1740612829367,82.9,135.62,135.57,18.64964886]
[1740612830938,0.7374,135.6,135.56,7.12]
[1740612832245,0.7374,135.6,135.55,18.71264886]
[1740612832443,0.7374,135.6,135.55,0.063]
[1740612832662,0.7374,135.6,135.55,7.4403]
[1740612832871,0.7374,135.6,135.55,26.08994886]
[1740612833090,82.9,135.61,135.56,18.64964886]
[1740612833367,0.7371,135.66,135.57,0.42648471]
[1740612833540,8.5074,135.67,135.58,18.64964886]
[1740612833735,8.5074,135.67,135.59,7.12]
[1740612834260,6.9227,135.67,135.6,18.64964886]
[1740612835267,6.9227,135.67,135.62,18.64964886]
[1740612836069,6.9227,135.67,135.61,7.374]
[1740612836070,6.9227,135.67,135.59,91.1082]
[1740612836366,8.7654,135.67,135.59,98.4833]
[1740612836545,8.7654,135.67,135.6,18.64964886]
[1740612836745,0.14216157,135.66,135.59,89.52]
[1740612836944,0.14216157,135.66,135.59,89.583]
[1740612837358,0.7371,135.65,135.59,89.583]
[1740612838063,82.9,135.64,135.59,7.183]
[1740612838365,82.9,135.64,135.59,14.5581]
[1740612838948,82.9,135.64,135.59,7.183]
[1740612839343,0.7373,135.63,135.59,7.183]
[1740612839744,0.7373,135.63,135.59,0.063]
[1740612839745,82.9,135.62,135.59,0.063]
[1740612840557,6.571,135.6,135.59,0.063]
[1740612840978,6.571,135.6,135.55,0.063]
[1740612841265,1.93686283,135.59,135.55,0.063]
[1740612841465,2.5814,135.58,135.55,0.063]
[1740612841646,9.03734063,135.57,135.55,0.063]
[1740612842171,9.03734063,135.57,135.55,0.0001]
[1740612842346,1.596,135.56,135.55,0.0001]
[1740612843056,1.0,135.54,135.45,0.063]
[1740612843262,1.93789312,135.53,135.45,0.063]
[1740612843562,9.6825,135.52,135.45,0.063]
[1740612843757,8.194,135.5,135.45,0.063]
[1740612843956,1.93844544,135.49,135.45,0.063]
[1740612844259,0.14216157,135.48,135.45,0.063]
[1740612844460,0.14216157,135.46,135.45,0.063]
[1740612844647,19.79181043,135.46,135.45,0.0001]
[1740612844847,20.07613357,135.46,135.45,0.0001]
[1740612845451,0.28432314,135.45,135.44,0.063]
[1740612845653,2.36557527,135.45,135.44,0.063]
[1740612846645,3.10377527,135.45,135.44,0.063]
[1740612851753,2.9616137,135.45,135.44,0.063]
[1740612852459,4.8072137,135.45,135.4,0.03]
[1740612853257,18.64964886,135.44,135.4,0.03]
[1740612853573,0.28432314,135.41,135.4,0.03]
[1740612853975,2.96187605,135.41,135.4,0.03]
[1740612855576,3.10403762,135.41,135.4,0.03]
[1740612856961,7.12,135.43,135.4,0.03]
[1740612857464,9.05899628,135.43,135.4,0.03]
[1740612857877,7.12,135.43,135.4,0.03]
[1740612858055,0.7382,135.46,135.4,0.03]
[1740612858582,0.7382,135.46,135.4,18.67964886]
[1740612858961,1.93830248,135.48,135.4,18.67964886]
[1740612859162,0.7381,135.47,135.41,7.3849]
[1740612859971,0.738,135.49,135.41,7.3849]
[1740612860178,0.738,135.49,135.42,18.64964886]
[1740612860982,0.738,135.49,135.41,7.3849]
[1740612863058,82.9,135.48,135.42,44.49454886]
[1740612863264,82.9,135.48,135.41,89.7847]
[1740612863464,82.9,135.47,135.41,7.3847]
[1740612864584,83.6382,135.47,135.41,7.3847]
[1740612865066,82.9,135.47,135.42,18.64964886]
[1740612865267,90.758,135.5,135.42,18.64964886]
[1740612865478,90.758,135.5,135.42,101.04964886]
[1740612865978,83.638,135.5,135.42,101.04964886]
[1740612866686,83.638,135.5,135.44,18.64964886]
[1740612867786,83.638,135.5,135.44,26.03274886]
[1740612868282,83.638,135.5,135.42,82.4]
[1740612868470,83.638,135.5,135.42,89.7842]
[1740612870586,82.9,135.49,135.42,7.3842]
[1740612870786,82.9,135.49,135.42,26.03384886]
[1740612871365,82.9,135.49,135.43,18.64964886]
[1740612871571,82.9,135.49,135.44,7.3833]
[1740612871975,82.9,135.52,135.45,20.25394886]
[1740612872367,90.02,135.54,135.47,18.64964886]
[1740612872790,0.063,135.49,135.47,18.64964886]
[1740612873088,82.963,135.57,135.48,0.14216157]
[1740612873267,82.9,135.56,135.48,82.54216157]
[1740612873676,82.9,135.56,135.5,18.64964886]
[1740612874593,82.9,135.56,135.51,1.5795]
[1740612875380,0.063,135.57,135.53,6.3222]
[1740612875585,0.8006,135.57,135.53,6.3222]
[1740612875783,0.063,135.57,135.53,6.3222]
[1740612876290,0.063,135.57,135.54,18.64964886]
[1740612876788,0.063,135.57,135.53,88.7222]
[1740612878796,0.063,135.57,135.53,82.4]
[1740612879586,82.963,135.57,135.51,34.70844886]
[1740612879995,83.7006,135.57,135.51,34.70844886]
[1740612882692,82.9,135.56,135.48,84.0209]
[1740612882999,82.9,135.56,135.48,91.4018]
[1740612883308,0.14216157,135.55,135.48,84.0209]
[1740612883609,82.9,135.54,135.48,1.6209]
[1740612883807,82.9,135.53,135.47,26.03124886]
[1740612884475,0.7378,135.52,135.47,26.03124886]
[1740612885488,82.9,135.53,135.47,26.03124886]
[1740612885489,83.6378,135.53,135.47,26.03124886]
[1740612886297,82.9,135.53,135.47,26.03124886]
[1740612888014,0.8006,135.56,135.49,18.64964886]
[1740612889310,0.8006,135.56,135.51,18.64964886]
[1740612890277,0.8006,135.56,135.51,26.02874886]
[1740612891105,0.8006,135.56,135.5,82.4]
[1740612891503,0.8006,135.56,135.46,6.4642]
[1740612891504,83.04216157,135.55,135.47,7.3814]
[1740612891684,0.14216157,135.53,135.45,8.9926]
[1740612892399,0.7378,135.52,135.45,8.9926]
[1740612892598,82.9,135.51,135.45,1.61]
[1740612894384,0.738,135.5,135.45,1.61]
[1740612896202,0.738,135.5,135.46,18.64964886]
[1740612897596,0.7378,135.52,135.46,26.03174886]
[1740612897785,0.7378,135.52,135.46,33.13174886]
[1740612898691,0.063,135.53,135.46,33.13174886]
[1740612898692,0.8008,135.53,135.46,33.13174886]
[1740612899693,0.063,135.53,135.46,272.78734886]
[1740612899882,0.063,135.53,135.48,19.64964886]
[1740612900193,0.063,135.53,135.48,239.84964886]
[1740612900392,0.063,135.53,135.48,237.84964886]
[1740612900794,0.063,135.53,135.48,239.84964886]
[1740612900996,0.063,135.53,135.48,238.84964886]
[1740612901196,0.063,135.53,135.48,239.84964886]
[1740612901606,0.063,135.53,135.49,7.3806]
[1740612901814,0.063,135.53,135.51,7.7399]
[1740612902003,0.063,135.53,135.51,83.9909]
[1740612902309,0.063,135.53,135.49,82.4]
[1740612903110,0.063,135.53,135.48,7.1]
[1740612903285,0.063,135.53,135.48,33.13064886]
[1740612904213,0.063,135.53,135.49,18.64964886]
[1740612905613,0.063,135.53,135.5,7.38]
[1740612906205,0.063,135.53,135.51,18.64964886]
[1740612906514,0.063,135.53,135.51,102.04964886]
[1740612907395,0.063,135.53,135.51,101.04964886]
[1740612907907,0.063,135.53,135.51,109.88082407]
[1740612908113,0.063,135.53,135.52,20.21829514]
[1740612909222,0.063,135.53,135.52,26.02854886]
[1740612909416,0.063,135.53,135.52,18.64964886]
[1740612909902,0.063,135.53,135.52,26.59719514]
[1740612910396,0.063,135.53,135.52,246.79719514]
[1740612910597,0.063,135.53,135.52,247.79719514]
[1740612910803,0.063,135.53,135.52,249.30809514]
[1740612911291,0.0001,135.53,135.52,249.30809514]
[1740612911495,0.063,135.56,135.52,249.30809514]
[1740612911496,0.063,135.56,135.55,2.0]
[1740612911715,0.063,135.56,135.55,248.39964628]
[1740612911897,0.063,135.56,135.55,246.94964886]
[1740612912497,0.063,135.56,135.55,245.94964886]
[1740612912702,0.063,135.56,135.55,245.51829514]
[1740612912889,0.063,135.56,135.55,101.04964886]
[1740612913919,0.063,135.56,135.55,108.99559514]
[1740612914112,0.063,135.56,135.55,249.24580354]
[1740612914415,0.063,135.57,135.56,21.21829514]
[1740612914620,0.063,135.57,135.56,28.31829514]
[1740612914999,0.063,135.58,135.56,28.31829514]
[1740612915211,0.063,135.58,135.56,27.31829514]
[1740612915415,0.063,135.58,135.56,28.31829514]
[1740612915714,0.063,135.58,135.57,20.64964886]
[1740612915922,0.063,135.58,135.57,28.02584886]
[1740612916918,82.9,135.64,135.58,20.21829514]
[1740612917121,6.8169,135.67,135.58,239.41829514]
[1740612917304,6.8169,135.67,135.6,21.21829514]
[1740612917305,0.063,135.67,135.6,21.21829514]
[1740612917511,0.063,135.67,135.62,18.64964886]
[1740612917700,0.063,135.67,135.62,101.04964886]
[1740612917902,0.063,135.67,135.64,18.64964886]
[1740612918405,0.063,135.67,135.64,101.04964886]
[1740612918606,0.063,135.67,135.66,18.64964886]
[1740612918812,0.063,135.67,135.66,101.04964886]
[1740612921023,0.063,135.67,135.66,108.42094886]
[1740612921200,0.063,135.67,135.66,115.52094886]
[1740612921710,0.063,135.67,135.66,108.14964886]
[1740612922423,0.063,135.67,135.66,25.74964886]
[1740612925820,6.254,135.67,135.6,82.4]
[1740612926020,83.6371,135.66,135.6,82.4]
[1740612926905,83.6371,135.66,135.61,18.64964886]
[1740612929502,0.7371,135.66,135.61,18.64964886]
[1740612930126,83.6371,135.66,135.61,18.64964886]
[1740612930529,6.991,135.67,135.61,18.64964886]
[1740612930726,6.254,135.67,135.61,26.02364886]
[1740612931024,6.991,135.67,135.61,18.64964886]
[1740612932520,6.991,135.67,135.61,26.02364886]
[1740612932834,6.254,135.67,135.61,26.02364886]
[1740612933129,6.254,135.67,135.61,108.42364886]
[1740612933329,0.063,135.67,135.63,18.64964886]
[1740612933635,0.063,135.67,135.65,18.64964886]
[1740612934132,0.063,135.67,135.65,240.29744279]
[1740612934337,0.063,135.67,135.65,238.84964886]
[1740612934521,0.063,135.67,135.65,237.84964886]
[1740612934831,0.063,135.67,135.65,238.84964886]
[1740612935134,0.063,135.67,135.66,26.02094886]
[1740612935321,0.063,135.67,135.66,108.42094886]
[1740612937136,0.063,135.67,135.66,26.02094886]
[1740612938836,0.063,135.67,135.66,18.64964886]
[1740612940113,0.063,135.67,135.66,108.42094886]
[1740612940536,0.063,135.67,135.66,109.86825222]
[1740612941051,0.063,135.67,135.66,110.4368985]
[1740612941418,0.0001,135.67,135.66,249.2368985]
[1740612941739,0.0001,135.67,135.66,247.78959514]
[1740612941935,0.0001,135.67,135.66,246.78959514]
[1740612942141,0.0001,135.67,135.66,245.78959514]
[1740612942343,0.0001,135.67,135.66,245.22094886]
[1740612942643,0.0001,135.67,135.66,245.78959514]
[1740612943221,0.0001,135.67,135.66,247.78959514]
[1740612943531,0.0001,135.67,135.66,249.36549514]
[1740612943915,0.03,135.69,135.68,1.0]
[1740612944119,0.03,135.69,135.68,8.08]
[1740612944332,0.063,135.71,135.7,1.56864628]
[1740612944541,0.063,135.71,135.7,239.41829514]
[1740612945421,0.0001,135.71,135.7,240.41829514]
[1740612945632,0.0001,135.71,135.7,239.41829514]
[1740612946453,0.0001,135.71,135.7,247.78739514]
[1740612946765,0.0001,135.71,135.7,246.78739514]
[1740612946921,0.0001,135.71,135.7,247.78739514]
[1740612947458,0.03,135.76,135.73,1.0]
[1740612947741,0.03,135.76,135.74,25.72964886]
[1740612948721,0.03,135.76,135.75,7.3664]
[1740612948940,0.03,135.76,135.75,108.41604886]
[1740612949621,0.03,135.76,135.75,108.98469514]
[1740612949821,0.03,135.76,135.75,110.42915449]
[1740612950118,0.03,135.76,135.75,247.22915449]
[1740612950322,0.03,135.76,135.75,245.21604886]
[1740612951838,0.03,135.76,135.75,108.41604886]
[1740612952144,0.03,135.76,135.75,101.04964886]
[1740612952729,0.03,135.76,135.75,18.64964886]
[1740612954041,0.03,135.76,135.75,26.01604886]
[1740612959433,0.03,135.76,135.75,18.64964886]
[1740612961358,0.03,135.76,135.74,82.4]
[1740612961653,0.03,135.76,135.69,89.543]
[1740612961856,0.03,135.76,135.7,18.64964886]
[1740612963035,0.7665,135.76,135.7,18.64964886]
[1740612963236,0.7665,135.76,135.7,26.01874886]
[1740612963854,0.7665,135.76,135.7,18.64964886]
[1740612964059,0.14216157,135.73,135.69,0.063]
[1740612964355,82.9,135.72,135.69,0.063]
[1740612964747,83.04216157,135.71,135.69,0.063]
[1740612964939,83.04216157,135.71,135.61,89.7739]
[1740612964940,1.70816157,135.69,135.62,18.64964886]
[1740612965139,0.28432314,135.67,135.58,0.063]
[1740612965341,0.14216157,135.65,135.58,0.063]
[1740612966039,96.3586,135.66,135.58,108.48834886]
[1740612966242,1.566,135.69,135.61,19.21829514]
[1740612966571,1.566,135.69,135.61,238.41829514]
[1740612966941,1.566,135.69,135.63,18.64964886]
[1740612967274,1.566,135.69,135.63,25.72964886]
[1740612967560,2.3029,135.69,135.63,25.72964886]
[1740612968044,1.566,135.69,135.63,25.72964886]
[1740612968442,6.2542,135.7,135.63,244.92964886]
[1740612968962,6.2542,135.7,135.65,18.64964886]
[1740612969166,6.2542,135.7,135.65,101.04964886]
[1740612969542,6.9911,135.7,135.65,101.04964886]
[1740612969842,8.92605353,135.7,135.61,7.3739]
[1740612970142,82.9,135.69,135.62,18.64964886]
[1740612970348,6.2542,135.7,135.63,0.56864628]
[1740612970859,6.2542,135.7,135.63,82.4]
[1740612971062,6.2542,135.7,135.64,14.4524]
[1740612971361,6.2542,135.7,135.65,18.64964886]
[1740612973369,6.2542,135.7,135.66,7.3713]
[1740612973548,6.5645,135.74,135.69,18.64964886]
[1740612973753,6.5645,135.74,135.7,18.64964886]
[1740612974078,0.03,135.76,135.72,18.64964886]
[1740612974278,0.03,135.76,135.72,101.04964886]
[1740612974652,0.03,135.76,135.72,237.84964886]
[1740612975868,0.03,135.76,135.69,14.4492]
[1740612975869,0.03,135.76,135.7,18.64964886]
[1740612977363,0.03,135.76,135.7,26.01864886]
[1740612978158,0.03,135.76,135.72,18.64964886]
[1740612978894,0.03,135.76,135.72,26.01754886]
[1740612979588,0.03,135.76,135.7,219.2]
[1740612979964,0.03,135.76,135.71,18.64964886]
[1740612983389,0.03,135.76,135.69,7.143]
[1740612983390,6.0728,135.74,135.69,0.063]
[1740612983692,82.9,135.73,135.69,0.063]
[1740612983887,84.83459357,135.73,135.69,0.063]
[1740612984088,2.72096157,135.72,135.69,0.063]
[1740612984302,84.83474098,135.71,135.69,0.063]
[1740612984590,6.68166157,135.69,135.63,82.4]
[1740612984794,82.9,135.68,135.59,213.72]
[1740612985096,82.9,135.67,135.6,18.64964886]
[1740612986198,82.9,135.67,135.6,26.02394886]
[1740612986199,83.6371,135.67,135.6,26.02394886]
[1740612987999,6.68166157,135.69,135.58,0.063]
[1740612988000,83.6371,135.66,135.58,0.063]
[1740612988189,86.48371434,135.65,135.58,0.063]
[1740612988391,6.3011,135.63,135.58,0.063]
[1740612989180,85.12022927,135.62,135.58,0.063]
[1740612989477,0.14216157,135.6,135.58,0.063]
[1740612989678,0.28432314,135.6,135.58,0.063]
[1740612989904,0.28432314,135.58,135.56,0.063]
[1740612990079,7.18846157,135.57,135.56,0.063]
[1740612991002,7.33062314,135.57,135.56,0.063]
[1740612991306,0.14216157,135.56,135.55,0.063]
[1740612991683,0.28432314,135.56,135.55,0.063]
[1740612991983,2.22139044,135.56,135.55,0.063]
[1740612992197,0.7376,135.56,135.55,0.063]
[1740612994198,6.3087,135.57,135.55,0.063]
[1740612994402,7.0463,135.57,135.55,0.063]
[1740612995202,6.3087,135.57,135.55,0.063]
[1740612996306,82.9,135.61,135.55,0.063]
[1740612996898,6.1133,135.62,135.56,18.64964886]
[1740612997910,7.08,135.65,135.58,18.64964886]
[1740612998096,88.9162,135.66,135.58,101.04964886]
[1740612998295,89.6533,135.66,135.58,101.04964886]
[1740612999198,82.9,135.65,135.59,7.3751]
[1740612999400,82.9,135.65,135.6,18.64964886]
[1740613000794,83.6372,135.65,135.6,18.64964886]
[1740613001292,83.6372,135.65,135.59,18.64964886]
[1740613002410,83.04216157,135.64,135.55,0.063]
[1740613002606,91.91621411,135.63,135.55,0.063]
[1740613002900,0.14216157,135.62,135.55,0.063]
[1740613003407,0.14216157,135.6,135.55,0.063]
[1740613003587,82.9,135.59,135.55,0.063]
[1740613005193,6.0323,135.58,135.55,0.063]
[1740613005409,83.6376,135.57,135.55,0.063]
[1740613005708,82.9,135.56,135.55,0.063]
[1740613006611,83.6376,135.56,135.55,0.063]
[1740613008304,82.9,135.56,135.55,0.063]
[1740613008505,83.6376,135.56,135.55,0.063]
[1740613009010,82.9,135.56,135.55,0.063]
[1740613010225,83.6376,135.56,135.55,0.063]
[1740613015211,82.9,135.56,135.55,0.063]
[1740613016719,83.6376,135.56,135.55,0.063]
[1740613018418,2.73769098,135.56,135.55,0.063]
[1740613019595,5.58189098,135.56,135.46,89.782]
[1740613019799,82.9,135.55,135.46,89.782]
[1740613020020,1.93753122,135.54,135.47,18.64964886]
[1740613020317,1.93753122,135.54,135.44,0.03]
[1740613020318,1.0,135.51,135.44,0.03]
[1740613020500,84.83806972,135.5,135.44,0.03]
[1740613021416,0.738,135.49,135.44,0.03]
[1740613022832,85.57614058,135.48,135.44,0.03]
[1740613023129,82.9,135.47,135.44,0.03]
[1740613025118,82.9,135.51,135.44,0.03]
[1740613025607,82.9,135.51,135.45,18.64964886]
[1740613025812,89.98,135.54,135.45,237.84964886]
[1740613026023,89.3778,135.56,135.47,18.64964886]
[1740613026214,89.3778,135.56,135.49,18.64964886]
[1740613026411,0.063,135.56,135.5,0.56864628]
[1740613026617,0.063,135.56,135.51,18.64964886]
[1740613028629,0.34732314,135.56,135.51,18.64964886]
[1740613028832,0.28432314,135.54,135.46,6.4178]
[1740613029018,83.04216157,135.55,135.45,14.4627]
[1740613029019,0.28432314,135.52,135.45,14.4627]
[1740613029924,0.28432314,135.52,135.46,18.64964886]
[1740613030131,83.6378,135.53,135.46,18.64964886]
[1740613030624,82.9,135.53,135.46,18.64964886]
[1740613030940,83.6378,135.53,135.46,18.64964886]
[1740613031737,83.6378,135.53,135.46,101.04964886]
[1740613031939,82.9,135.53,135.46,101.04964886]
[1740613032140,83.6378,135.53,135.48,18.64964886]
[1740613032520,82.9,135.53,135.48,18.64964886]
[1740613032731,0.063,135.56,135.48,101.04964886]
[1740613032935,0.8006,135.56,135.48,101.04964886]
[1740613033224,0.063,135.56,135.48,101.04964886]
[1740613033431,0.8006,135.56,135.48,101.04964886]
[1740613033630,2.6448,135.56,135.48,101.04964886]
[1740613034427,4.58192304,135.56,135.48,101.04964886]
[1740613034641,2.6448,135.56,135.48,108.43064886]
[1740613034834,2.6448,135.56,135.48,101.04964886]
[1740613035535,2.6448,135.56,135.48,108.43074886]
[1740613036640,82.9,135.55,135.48,108.43074886]
[1740613036855,82.9,135.55,135.5,18.64964886]
[1740613037040,0.063,135.56,135.5,114.22074886]
[1740613037432,0.063,135.56,135.52,18.64964886]
[1740613037619,0.063,135.56,135.53,0.56864628]
[1740613037819,0.063,135.56,135.54,18.64964886]
[1740613038946,0.063,135.56,135.54,26.02714886]
[1740613040042,0.063,135.55,135.54,26.02714886]
[1740613040921,0.063,135.55,135.54,18.64964886]
[1740613041343,0.063,135.55,135.54,26.02744886]
[1740613046446,0.063,135.55,135.5,89.78]
[1740613046647,0.063,135.55,135.48,82.4]
[1740613046835,0.063,135.55,135.5,18.64964886]
[1740613047845,0.063,135.55,135.52,18.64964886]
[1740613048448,0.063,135.55,135.52,239.43934886]
[1740613049132,0.063,135.55,135.53,7.3784]
[1740613049455,0.063,135.55,135.54,18.64964886]
[1740613051246,0.063,135.55,135.54,26.02744886]
[1740613054454,0.063,135.55,135.54,18.64964886]
[1740613054659,0.063,135.55,135.5,82.43]
[1740613054956,0.063,135.55,135.51,18.64964886]
[1740613055152,0.063,135.55,135.51,26.02914886]
[1740613056159,82.9,135.54,135.5,0.03]
[1740613056555,82.9,135.54,135.5,18.67964886]
[1740613057057,82.9,135.54,135.5,0.03]
[1740613057262,0.14216157,135.52,135.5,0.03]
[1740613057440,82.9,135.51,135.5,0.03]
[1740613057850,82.9,135.53,135.5,0.03]
[1740613058455,1.93731272,135.52,135.5,0.03]
[1740613058843,84.837638,135.53,135.5,0.03]
[1740613059464,0.7378,135.52,135.5,0.03]
[1740613063668,83.6378,135.52,135.5,0.03]
[1740613064251,82.9,135.52,135.5,0.03]
[1740613065064,83.6379,135.52,135.5,0.03]
[1740613065461,82.9,135.52,135.5,0.03]
[1740613069671,0.7378,135.53,135.5,0.03]
[1740613073276,84.97967438,135.52,135.5,0.03]
[1740613074353,0.7379,135.51,135.5,0.03]
[1740613080682,0.14216157,135.5,135.44,0.03]
[1740613080979,84.98024191,135.5,135.44,0.03]
[1740613081568,82.9,135.49,135.44,0.03]
[1740613082559,0.7381,135.48,135.44,0.03]
[1740613082765,82.9,135.47,135.44,0.03]
[1740613084765,0.738,135.5,135.44,0.03]
[1740613085173,91.38394108,135.49,135.44,0.03]
[1740613086483,89.304,135.49,135.44,0.03]
[1740613086687,91.24194408,135.49,135.44,0.03]
[1740613086889,0.7381,135.48,135.44,0.03]
[1740613087675,89.304,135.49,135.44,0.03]
[1740613087882,82.9,135.49,135.44,0.03]
[1740613088077,82.9,135.49,135.44,18.67964886]
[1740613089085,82.9,135.49,135.44,26.06254886]
[1740613089478,83.638,135.49,135.44,18.67964886]
[1740613090092,82.9,135.49,135.44,26.06294886]
[1740613090478,83.638,135.49,135.44,26.06294886]
[1740613090684,82.9,135.49,135.44,26.06294886]
[1740613090994,83.638,135.49,135.44,26.06294886]
[1740613091485,82.9,135.49,135.44,26.06294886]
[1740613091881,0.063,135.5,135.44,108.46294886]
[1740613092082,0.063,135.5,135.44,134.00124886]
[1740613092283,0.063,135.5,135.46,18.64964886]
[1740613093394,0.063,135.5,135.44,233.6931]
[1740613093594,0.063,135.5,135.44,7.11]
[1740613093997,82.9,135.49,135.44,7.11]
[1740613094204,82.9,135.49,135.44,0.03]
[1740613095198,0.7381,135.48,135.44,0.03]
[1740613096294,83.6381,135.48,135.44,0.03]
[1740613098399,84.83825222,135.47,135.44,0.03]
[1740613099802,82.9,135.46,135.44,0.03]
[1740613099980,1.93861432,135.45,135.44,0.03]
[1740613100378,2.67681432,135.45,135.44,0.03]
[1740613102192,3.10329903,135.45,135.44,0.03]
[1740613103208,2.96113746,135.45,135.44,0.03]
[1740613104488,3.10329903,135.45,135.44,0.03]
[1740613106894,3.10329903,135.45,135.44,0.0001]
[1740613107210,0.28432314,135.44,135.43,0.0001]
[1740613107510,7.36432314,135.44,135.43,0.0001]
[1740613108315,8.36432314,135.44,135.43,0.0001]
[1740613108897,9.10262314,135.44,135.43,0.0001]
[1740613109511,8.10262314,135.44,135.43,0.0001]
[1740613109925,9.10262314,135.44,135.43,0.0001]
[1740613111100,8.10262314,135.44,135.43,0.0001]
[1740613111305,7.8183,135.44,135.43,0.0001]
[1740613113727,0.7383,135.44,135.43,0.0001]
[1740613114313,0.7382,135.45,135.43,0.0001]
[1740613115419,84.98073409,135.44,135.43,0.0001]
[1740613116020,85.04373409,135.44,135.43,0.0001]
[1740613116518,85.78203409,135.44,135.43,0.0001]
[1740613120318,2.88203409,135.44,135.43,0.0001]
[1740613121518,3.88203409,135.44,135.43,0.0001]
[1740613124818,22.22654886,135.41,135.4,0.0001]
[1740613125137,1.0,135.38,135.36,0.0001]
[1740613125307,2.0,135.36,135.35,0.0001]
[1740613125513,27.72964886,135.36,135.35,0.0001]
[1740613126130,7.08,135.36,135.35,0.0001]
[1740613126707,7.8187,135.36,135.35,0.0001]
[1740613128212,7.96086157,135.36,135.35,0.0001]
[1740613128609,8.24518471,135.36,135.35,0.0001]
[1740613131335,1.16518471,135.36,135.35,0.0001]
[1740613131547,0.7387,135.36,135.35,0.0001]
[1740613131751,3.10512318,135.36,135.35,0.0001]
[1740613136052,1.02302314,135.36,135.35,0.0001]
[1740613139846,0.7387,135.36,135.35,0.0001]
[1740613141528,1.02302314,135.36,135.35,0.0001]
[1740613142743,0.7387,135.36,135.35,0.0001]
[1740613143846,83.6387,135.36,135.35,0.0001]
[1740613148838,0.7387,135.36,135.35,0.0001]
[1740613149039,0.063,135.37,135.35,0.0001]
[1740613149551,0.063,135.37,135.36,18.64964886]
[1740613151156,0.7384,135.43,135.38,18.64964886]
[1740613151341,0.7384,135.43,135.39,6.5183]
[1740613152356,0.8013,135.44,135.39,6.5183]
[1740613155546,2.6471,135.44,135.37,8.6954]
[1740613155742,82.9,135.43,135.37,1.6154]
[1740613156661,0.7384,135.42,135.37,1.6154]
[1740613157538,2.5845,135.42,135.37,1.6154]
[1740613158758,82.9,135.41,135.37,1.6154]
[1740613158964,82.9,135.41,135.35,0.0001]
[1740613158965,0.14216157,135.39,135.35,0.0001]